fUSD/lending_fUSD_20240427
["ID","MTS","AMOUNT","RATE_DAILY","PERIOD"]
[323747208,1714231841558,-500.0,0.00010958,2]
[323747209,1714231841569,-252.16,0.00010958,2]
[323747210,1714231841578,-68.71399387,0.00010958,2]
[323747211,1714231841590,-431.28600613,0.00010958,2]
[323747212,1714231841599,-592.92,0.00010958,2]
[323747213,1714231841608,-500.0,0.00010958,2]
[323747214,1714231841618,-500.0,0.00010958,2]
[323747215,1714231841627,-500.0,0.00010958,2]
[323747216,1714231841636,-500.0,0.00010958,2]
[323747217,1714231841646,-318.49399387,0.00010958,2]
[323747218,1714231841727,-181.50600613,0.00010958,2]
[323747219,1714231841736,-423.59399387,0.00010958,2]
[323747220,1714231841762,-76.40600613,0.00010958,2]
[323747221,1714231841771,-500.0,0.00010958,2]
[323747222,1714231841781,-1016.14,0.00010958,2]
[323747223,1714231841790,-500.0,0.00010958,2]
[323747224,1714231841800,-500.0,0.00010958,2]
[323747225,1714231841809,-500.0,0.00010958,2]
[323747226,1714231841819,-500.0,0.00010958,2]
[323747227,1714231841827,-500.0,0.00010958,2]
[323747228,1714231841838,-500.0,0.00010958,2]
[323747229,1714231841848,-500.0,0.00010958,2]
[323747230,1714231841858,-500.0,0.00010958,2]
[323747231,1714231841867,-500.0,0.00010958,2]
[323747232,1714231841877,-500.0,0.00010958,2]
[323747233,1714231841886,-500.0,0.00010958,2]
[323747234,1714231841895,-264.94916606,0.00010958,2]
[323747235,1714231841907,-453.44083394,0.00010958,2]
[323747236,1714231841916,-595.09,0.00010958,2]
[323747237,1714231841926,-500.0,0.00010958,2]
[323747238,1714231841935,-500.0,0.00010958,2]
[323747239,1714231841945,-500.0,0.00010958,2]
[323747240,1714231841954,-241.97185068,0.00010958,2]
[323747241,1714231842003,-258.02814932,0.00010958,2]
[323747242,1714231842012,-500.0,0.00010958,2]
[323747243,1714231842024,-143.43279432,0.00010958,2]
[323747244,1714231842036,-356.56720568,0.00010958,2]
[323747245,1714231842045,-217.38998432,0.00010958,2]
[323747246,1714231842057,-282.61001568,0.00010958,2]
[323747247,1714231842067,-456.17932192,0.00010958,2]
[323747248,1714231842078,-43.82067808,0.00010958,2]
[323747249,1714231842088,-413.72584161,0.00010958,2]
[323747250,1714231842101,-86.27415839,0.00010958,2]
[323747251,1714231842110,-500.0,0.00010958,2]
[323747252,1714231842119,-500.0,0.00010958,2]
[323747253,1714231842129,-350.38722615,0.00010958,2]
[323747262,1714231843189,-149.61277385,0.00010958,2]
[323747263,1714231843199,-299.65607035,0.00010958,2]
[323747264,1714231843247,-200.34392965,0.00010958,2]
[323747265,1714231843257,-500.0,0.00010958,2]
[323747266,1714231843267,-500.0,0.00010958,2]
[323747267,1714231843276,-500.0,0.00010958,2]
[323747268,1714231843285,-500.0,0.00010958,2]
[323747269,1714231843295,-509.59832112,0.00010958,2]
[323747270,1714231843304,-500.0,0.00010958,2]
[323747271,1714231843314,-644.63,0.00010958,2]
[323747272,1714231843324,-499.27549529,0.00010958,2]
[323747273,1714231843333,-972.03,0.00010958,2]
[323747274,1714231843343,-500.0,0.00010958,2]
[323747275,1714231843353,-1081.0,0.00010958,2]
[323747276,1714231843362,-500.0,0.00010958,2]
[323747277,1714231843372,-500.0,0.00010958,2]
[323747278,1714231843381,-500.0,0.00010958,2]
[323747279,1714231843392,-500.0,0.00010958,2]
[323747280,1714231843402,-500.0,0.00010958,2]
[323747281,1714231843411,-500.0,0.00010958,2]
[323747282,1714231843421,-500.0,0.00010958,2]
[323747283,1714231843431,-702.01,0.00010958,2]
[323747284,1714231843440,-500.0,0.00010958,2]
[323747285,1714231843449,-500.0,0.00010958,2]
[323747286,1714231843458,-500.0,0.00010958,2]
[323747287,1714231843467,-500.0,0.00010958,2]
[323747288,1714231843477,-500.0,0.00010958,2]
[323747289,1714231843486,-500.0,0.00010958,2]
[323747290,1714231843495,-500.0,0.00010958,2]
[323747291,1714231843505,-500.0,0.00010958,2]
[323747292,1714231843514,-660.7,0.00010958,2]
[323747293,1714231843523,-500.0,0.00010958,2]
[323747296,1714231843533,-661.51,0.00010958,2]
[323747298,1714231843543,-500.0,0.00010958,2]
[323747300,1714231843552,-500.0,0.00010958,2]
[323747301,1714231843561,-653.99,0.00010958,2]
[323747302,1714231843571,-500.0,0.00010958,2]
[323747303,1714231843580,-500.0,0.00010958,2]
[323747304,1714231843590,-500.0,0.00010958,2]
[323747305,1714231843599,-500.0,0.00010958,2]
[323747306,1714231843609,-500.0,0.00010958,2]
[323747307,1714231843618,-1256.64,0.00010958,2]
[323747308,1714231843627,-500.0,0.00010958,2]
[323747309,1714231843637,-500.0,0.00010958,2]
[323747310,1714231843646,-1537.01,0.00010958,2]
[323747311,1714231843656,-500.0,0.00010958,2]
[323747312,1714231843665,-2190.27,0.00010958,2]
[323747313,1714231843675,-500.0,0.00010958,2]
[323747314,1714231843684,-219.72050526,0.00010958,2]
[323747315,1714231843693,-500.0,0.00010958,2]
[323747316,1714231843702,-700.98,0.00010958,2]
[323747317,1714231843711,-500.0,0.00010958,2]
[323747318,1714231843721,-705.74,0.00010958,2]
[323747319,1714231843730,-500.0,0.00010958,2]
[323747320,1714231843739,-256.86601563,0.00010958,2]
[323747321,1714231843748,-500.0,0.00010958,2]
[323747322,1714231843758,-919.04,0.00010958,2]
[323747323,1714231843767,-4712.07,0.00010958,2]
[323747324,1714231843777,-801.93,0.00010958,2]
[323747325,1714231843786,-500.0,0.00010958,2]
[323747326,1714231843795,-500.0,0.00010958,2]
[323747327,1714231843805,-500.0,0.00010958,2]
[323747328,1714231843814,-242.28309461,0.00010958,2]
[323747329,1714231843824,-1474.31,0.00010958,2]
[323747330,1714231843833,-500.0,0.00010958,2]
[323747331,1714231843842,-1692.17,0.00010958,2]
[323747332,1714231843851,-500.0,0.00010958,2]
[323747333,1714231843861,-500.0,0.00010958,2]
[323747334,1714231843869,-2054.62,0.00010958,2]
[323747335,1714231843878,-793.69,0.00010958,2]
[323747336,1714231843887,-1100.93,0.00010958,2]
[323747337,1714231843896,-500.0,0.00010958,2]
[323747338,1714231843905,-648.13,0.00010958,2]
[323747339,1714231843914,-500.0,0.00010958,2]
[323747340,1714231843924,-500.0,0.00010958,2]
[323747341,1714231843932,-1573.84,0.00010958,2]
[323747342,1714231843942,-500.0,0.00010958,2]
[323747343,1714231843953,-983.88,0.00010958,2]
[323747344,1714231843963,-500.0,0.00010958,2]
[323747345,1714231843973,-1583.51,0.00010958,2]
[323747346,1714231843982,-500.0,0.00010958,2]
[323747347,1714231843991,-500.0,0.00010958,2]
[323747348,1714231844000,-500.0,0.00010958,2]
[323747349,1714231844009,-500.0,0.00010958,2]
[323747350,1714231844019,-1147.18,0.00010958,2]
[323747351,1714231844032,-687.92,0.00010958,2]
[323747352,1714231844041,-500.0,0.00010958,2]
[323747353,1714231844050,-1461.04,0.00010958,2]
[323747354,1714231844059,-1701.06,0.00010958,2]
[323747355,1714231844069,-500.0,0.00010958,2]
[323747356,1714231844079,-500.0,0.00010958,2]
[323747357,1714231844089,-500.0,0.00010958,2]
[323747358,1714231844098,-11371.49,0.00010958,2]
[323747359,1714231844109,-1288.98,0.00010958,2]
[323747360,1714231844119,-1015.52,0.00010958,2]
[323747361,1714231844128,-500.0,0.00010958,2]
[323747362,1714231844137,-2488.35,0.00010958,2]
[323747363,1714231844146,-1361.02,0.00010958,2]
[323747364,1714231844156,-500.0,0.00010958,2]
[323747365,1714231844166,-500.0,0.00010958,2]
[323747366,1714231844176,-4001.8,0.00010958,2]
[323747367,1714231844185,-703.68,0.00010958,2]
[323747368,1714231844196,-500.0,0.00010958,2]
[323747369,1714231844205,-778.99,0.00010958,2]
[323747370,1714231844215,-2664.37,0.00010958,2]
[323747371,1714231844224,-606.02,0.00010958,2]
[323747372,1714231844234,-500.0,0.00010958,2]
[323747373,1714231844244,-500.0,0.00010958,2]
[323747374,1714231844255,-14314.39465232,0.00010958,2]
[323747375,1714231844276,-2073.64,0.00010958,2]
[323747376,1714231845335,175.16,8.624e-05,2]
[323747388,1714231845972,-175.16,0.00010888,2]
[323747389,1714231845984,-611.05007,0.00010958,2]
[323747390,1714231846077,-1235.20527768,0.00010958,2]
[323747391,1714231846089,-500.0,0.00010958,2]
[323747392,1714231846102,-1294.40972225,0.00010958,2]
[323747393,1714231846133,-211.49027775,0.00010958,2]
[323747394,1714231846144,-500.0,0.00010958,2]
[323747395,1714231846162,-500.0,0.00010958,2]
[323747396,1714231846174,-1794.54,0.00010958,2]
[323747397,1714231846187,-2603.13,0.00010958,2]
[323747398,1714231846199,-500.0,0.00010958,2]
[323747399,1714231846211,-1164.88,0.00010958,2]
[323747400,1714231846224,-500.0,0.00010958,2]
[323747401,1714231846236,-500.0,0.00010958,2]
[323747402,1714231846247,-500.0,0.00010958,2]
[323747403,1714231846260,-1250.72,0.00010958,2]
[323747404,1714231846272,-905.43,0.00010958,2]
[323747405,1714231846284,-633.33,0.00010958,2]
[323747406,1714231846296,-944.04,0.00010958,2]
[323747408,1714231846308,-500.0,0.00010958,2]
[323747409,1714231846320,-1704.81,0.00010958,2]
[323747410,1714231846332,-525.52,0.00010958,2]
[323747411,1714231846344,-500.0,0.00010958,2]
[323747412,1714231846356,-2021.31,0.00010958,2]
[323747413,1714231846369,-10542.39,0.00010958,2]
[323747414,1714231846381,-933.06,0.00010958,2]
[323747415,1714231846394,-1703.73,0.00010958,2]
[323747416,1714231846406,-1230.47,0.00010958,2]
[323747417,1714231846417,-877.33,0.00010958,2]
[323747418,1714231846430,-500.0,0.00010958,2]
[323747419,1714231846442,-1282.06,0.00010958,2]
[323747420,1714231846454,-500.0,0.00010958,2]
[323747421,1714231846466,-500.0,0.00010958,2]
[323747422,1714231846478,-567.27,0.00010958,2]
[323747423,1714231846491,-898.51,0.00010958,2]
[323747424,1714231846503,-500.0,0.00010958,2]
[323747425,1714231846515,-1193.74,0.00010958,2]
[323747426,1714231846526,-500.0,0.00010958,2]
[323747427,1714231846539,-6410.04,0.00010958,2]
[323747428,1714231846550,-1654.07,0.00010958,2]
[323747429,1714231846562,-1303.02,0.00010958,2]
[323747430,1714231846573,-796.11,0.00010958,2]
[323747431,1714231846585,-1894.53,0.00010958,2]
[323747432,1714231846597,-1309.31,0.00010958,2]
[323747433,1714231846609,-500.0,0.00010958,2]
[323747434,1714231846623,-1536.61,0.00010958,2]
[323747435,1714231846636,-500.0,0.00010958,2]
[323747436,1714231846648,-640.76,0.00010958,2]
[323747437,1714231846660,-1208.19,0.00010958,2]
[323747438,1714231846672,-1100.0,0.00010958,2]
[323747439,1714231846683,-1484.75,0.00010958,2]
[323747440,1714231846696,-2504.79,0.00010958,2]
[323747441,1714231846708,-2078.42,0.00010958,2]
[323747442,1714231846720,-500.0,0.00010958,2]
[323747443,1714231846734,-663.12,0.00010958,2]
[323747444,1714231846746,-3003.29,0.00010958,2]
[323747445,1714231846759,-4243.92,0.00010958,2]
[323747446,1714231846771,-1695.44,0.00010958,2]
[323747447,1714231846782,-2258.44,0.00010958,2]
[323747448,1714231846794,-3143.65,0.00010958,2]
[323747449,1714231846805,-185.91576473,0.00010958,2]
[323747450,1714231846817,-500.0,0.00010958,2]
[323747451,1714231846829,-500.0,0.00010958,2]
[323747452,1714231846841,-2668.43,0.00010958,2]
[323747453,1714231846853,-502.00547704,0.00010958,2]
[323747454,1714231846866,-500.0,0.00010958,2]
[323747455,1714231846877,-500.0,0.00010958,2]
[323747456,1714231846889,-582.9,0.00010958,2]
[323747457,1714231846901,-502.26524062,0.00010958,2]
[323747458,1714231846913,-995.4,0.00010958,2]
[323747459,1714231846925,-2030.28,0.00010958,2]
[323747460,1714231846937,-522.02,0.00010958,2]
[323747461,1714231846948,-828.87,0.00010958,2]
[323747462,1714231846960,-723.58,0.00010958,2]
[323747463,1714231846972,-500.0,0.00010958,2]
[323747464,1714231846985,-1935.39,0.00010958,2]
[323747465,1714231846998,-500.0,0.00010958,2]
[323747466,1714231847009,-1471.28,0.00010958,2]
[323747467,1714231847022,-996.43,0.00010958,2]
[323747468,1714231847037,-500.0,0.00010958,2]
[323747469,1714231847050,-1929.77,0.00010958,2]
[323747470,1714231847063,-500.0,0.00010958,2]
[323747471,1714231847075,-500.0,0.00010958,2]
[323747472,1714231847087,-1177.87,0.00010958,2]
[323747473,1714231847099,-846.78,0.00010958,2]
[323747474,1714231847114,-1003.1,0.00010958,2]
[323747475,1714231847126,-500.0,0.00010958,2]
[323747476,1714231847138,-1562.47,0.00010958,2]
[323747477,1714231847149,-500.0,0.00010958,2]
[323747478,1714231847161,-800.81,0.00010958,2]
[323747479,1714231847173,-696.75,0.00010958,2]
[323747480,1714231847185,-500.0,0.00010958,2]
[323747481,1714231847197,-1768.69,0.00010958,2]
[323747482,1714231847209,-1749.52,0.00010958,2]
[323747483,1714231847221,-500.0,0.00010958,2]
[323747484,1714231847235,-500.0,0.00010958,2]
[323747485,1714231847248,-500.0,0.00010958,2]
[323747486,1714231847261,-1070.83,0.00010958,2]
[323747487,1714231847274,-1074.7,0.00010958,2]
[323747488,1714231847287,-1639.95,0.00010958,2]
[323747489,1714231847300,-1900.81,0.00010958,2]
[323747490,1714231847310,-809.87,0.00010958,2]
[323747491,1714231847320,-500.0,0.00010958,2]
[323747492,1714231847330,-500.0,0.00010958,2]
[323747493,1714231847339,-500.0,0.00010958,2]
[323747494,1714231847348,-500.0,0.00010958,2]
[323747495,1714231847358,-589.1,0.00010958,2]
[323747496,1714231847368,-2556.03,0.00010958,2]
[323747497,1714231847377,-622.43,0.00010958,2]
[323747498,1714231847387,-1793.18,0.00010958,2]
[323747499,1714231847396,-500.0,0.00010958,2]
[323747500,1714231847406,-500.0,0.00010958,2]
[323747501,1714231847415,-4286.02,0.00010958,2]
[323747502,1714231847425,-530.74,0.00010958,2]
[323747503,1714231847435,-1986.38,0.00010958,2]
[323747504,1714231847444,-1379.83,0.00010958,2]
[323747505,1714231847454,-1645.81,0.00010958,2]
[323747506,1714231847463,-500.0,0.00010958,2]
[323747507,1714231847763,-500.0,0.00010958,2]
[323747508,1714231847790,-1095.05,0.00010958,2]
[323747509,1714231847810,-1315.68,0.00010958,2]
[323747510,1714231847821,-500.0,0.00010958,2]
[323747511,1714231847831,-928.45,0.00010958,2]
[323747512,1714231847840,-500.0,0.00010958,2]
[323747513,1714231847850,-622.71,0.00010958,2]
[323747514,1714231847860,-500.0,0.00010958,2]
[323747515,1714231847871,-788.82,0.00010958,2]
[323747516,1714231847881,-500.0,0.00010958,2]
[323747517,1714231847890,-1230.62,0.00010958,2]
[323747518,1714231847898,-500.0,0.00010958,2]
[323747519,1714231847908,-500.0,0.00010958,2]
[323747520,1714231847916,-696.28,0.00010958,2]
[323747521,1714231847926,-500.0,0.00010958,2]
[323747522,1714231847935,-500.0,0.00010958,2]
[323747523,1714231847944,-500.0,0.00010958,2]
[323747524,1714231847953,-715.85,0.00010958,2]
[323747525,1714231847963,-500.0,0.00010958,2]
[323747526,1714231847972,-500.0,0.00010958,2]
[323747527,1714231847982,-1587.39,0.00010958,2]
[323747528,1714231847994,-500.0,0.00010958,2]
[323747529,1714231848003,-500.0,0.00010958,2]
[323747530,1714231848013,-981.29,0.00010958,2]
[323747531,1714231848023,-527.06439061,0.00010958,2]
[323747532,1714231848036,-1080.57,0.00010958,2]
[323747533,1714231848046,-1251.37,0.00010958,2]
[323747534,1714231848055,-500.0,0.00010958,2]
[323747535,1714231848066,-500.0,0.00010958,2]
[323747536,1714231848075,-500.0,0.00010958,2]
[323747537,1714231848085,-500.0,0.00010958,2]
[323747538,1714231848094,-500.0,0.00010958,2]
[323747539,1714231848108,-500.0,0.00010958,2]
[323747540,1714231848118,-1404.31,0.00010958,2]
[323747541,1714231848127,-530.89,0.00010958,2]
[323747542,1714231848137,-500.0,0.00010958,2]
[323747543,1714231848146,-498.77205913,0.00010958,2]
[323747544,1714231848155,-500.0,0.00010958,2]
[323747545,1714231848165,-500.0,0.00010958,2]
[323747546,1714231848174,-500.0,0.00010958,2]
[323747547,1714231848183,-500.0,0.00010958,2]
[323747548,1714231848193,-500.0,0.00010958,2]
[323747549,1714231848203,-1321.02,0.00010958,2]
[323747550,1714231848213,-500.0,0.00010958,2]
[323747551,1714231848222,-500.0,0.00010958,2]
[323747552,1714231848232,-1400.16,0.00010958,2]
[323747553,1714231848241,-2000.0,0.00010959,3]
[323747554,1714231848250,-167.02299764,0.00011132,2]
[323747555,1714231848259,-4108.0,0.00011132,2]
[323747556,1714231848268,-525.52,0.00011231,2]
[323747557,1714231848278,-564.41985207,0.00011232,2]
[323747558,1714231848287,-500.0,0.00011232,2]
[323747559,1714231848297,-500.0,0.00011232,2]
[323747560,1714231848307,-387.56916434,0.00011232,2]
[323747561,1714231848316,-510.6,0.00011232,2]
[323747562,1714231848326,-500.0,0.00011232,2]
[323747563,1714231848335,-500.0,0.00011232,2]
[323747564,1714231848345,-500.0,0.00011232,2]
[323747565,1714231848354,-500.0,0.00011232,2]
[323747566,1714231848363,-500.0,0.00011232,2]
[323747567,1714231848373,-500.0,0.00011232,2]
[323747568,1714231848383,-500.0,0.00011232,2]
[323747569,1714231848392,-500.0,0.00011232,2]
[323747570,1714231848401,-500.0,0.00011232,2]
[323747571,1714231848410,-500.0,0.00011232,2]
[323747572,1714231848420,-500.0,0.00011232,2]
[323747573,1714231848430,-565.58440279,0.00011232,2]
[323747574,1714231848439,-164.46561479,0.00011232,2]
[323747575,1714231848448,-500.0,0.00011232,2]
[323747576,1714231848458,-500.0,0.00011232,2]
[323747577,1714231848467,-500.0,0.00011232,2]
[323747578,1714231848476,-500.0,0.00011232,2]
[323747579,1714231848485,-500.0,0.00011232,2]
[323747580,1714231848495,-500.0,0.00011232,2]
[323747581,1714231848504,-500.0,0.00011232,2]
[323747582,1714231848513,-500.0,0.00011232,2]
[323747583,1714231848523,-500.0,0.00011232,2]
[323747584,1714231848532,-500.0,0.00011232,2]
[323747585,1714231848541,-500.0,0.00011232,2]
[323747586,1714231848551,-500.0,0.00011232,2]
[323747587,1714231848561,-620.66,0.00011232,2]
[323747588,1714231848570,-563.59,0.00011232,2]
[323747589,1714231848579,-500.0,0.00011232,2]
[323747590,1714231848588,-500.0,0.00011232,2]
[323747591,1714231848597,-595.59,0.00011232,2]
[323747592,1714231848606,-500.0,0.00011232,2]
[323747593,1714231848615,-500.0,0.00011232,2]
[323747594,1714231848624,-500.0,0.00011232,2]
[323747595,1714231848633,-500.0,0.00011232,2]
[323747596,1714231848642,-500.0,0.00011232,2]
[323747597,1714231848652,-500.0,0.00011232,2]
[323747598,1714231848662,-500.0,0.00011232,2]
[323747599,1714231848671,-500.0,0.00011232,2]
[323747600,1714231848679,-571.07,0.00011232,2]
[323747601,1714231848689,-306.54,0.00011232,2]
[323747602,1714231848700,-500.0,0.00011232,2]
[323747603,1714231848709,-500.0,0.00011232,2]
[323747604,1714231848718,-1100.53,0.00011232,2]
[323747605,1714231848729,-500.0,0.00011232,2]
[323747606,1714231848738,-500.0,0.00011232,2]
[323747607,1714231848748,-500.0,0.00011232,2]
[323747608,1714231848757,-500.0,0.00011232,2]
[323747609,1714231848767,-500.62,0.00011232,2]
[323747610,1714231848776,-605.19,0.00011232,2]
[323747611,1714231848785,-500.0,0.00011232,2]
[323747612,1714231848794,-953.37,0.00011232,2]
[323747613,1714231848804,-500.0,0.00011232,2]
[323747614,1714231848813,-500.0,0.00011232,2]
[323747615,1714231848822,-500.0,0.00011232,2]
[323747616,1714231848831,-500.0,0.00011232,2]
[323747617,1714231848842,-638.28,0.00011232,2]
[323747618,1714231848852,-558.01,0.00011232,2]
[323747619,1714231848861,-500.0,0.00011232,2]
[323747620,1714231848870,-500.0,0.00011232,2]
[323747621,1714231848880,-880.28,0.00011232,2]
[323747622,1714231848889,-500.0,0.00011232,2]
[323747623,1714231848898,-500.0,0.00011232,2]
[323747624,1714231848907,-500.0,0.00011232,2]
[323747625,1714231848916,-500.0,0.00011232,2]
[323747626,1714231848926,-500.0,0.00011232,2]
[323747627,1714231848935,-500.0,0.00011232,2]
[323747628,1714231848946,-840.46,0.00011232,2]
[323747629,1714231848956,-185.84,0.00011232,2]
[323747630,1714231848968,-500.0,0.00011232,2]
[323747631,1714231848978,-500.0,0.00011232,2]
[323747632,1714231848987,-215.36955476,0.00011232,2]
[323747633,1714231848996,-500.0,0.00011232,2]
[323747634,1714231849006,-500.0,0.00011232,2]
[323747635,1714231849015,-500.0,0.00011232,2]
[323747636,1714231849026,-626.94,0.00011232,2]
[323747637,1714231849038,-500.0,0.00011232,2]
[323747638,1714231849048,-500.0,0.00011232,2]
[323747639,1714231849057,-500.0,0.00011232,2]
[323747640,1714231849067,-252.16,0.00011232,2]
[323747641,1714231849078,-500.0,0.00011232,2]
[323747642,1714231849088,-592.92,0.00011232,2]
[323747643,1714231849097,-500.0,0.00011232,2]
[323747644,1714231849109,-500.0,0.00011232,2]
[323747645,1714231849119,-500.0,0.00011232,2]
[323747646,1714231849128,-500.0,0.00011232,2]
[323747647,1714231849137,-500.0,0.00011232,2]
[323747648,1714231849146,-500.0,0.00011232,2]
[323747649,1714231849155,-1016.14,0.00011232,2]
[323747650,1714231849164,-500.0,0.00011232,2]
[323747651,1714231849174,-500.0,0.00011232,2]
[323747652,1714231849184,-500.0,0.00011232,2]
[323747653,1714231849194,-544.88,0.00011232,2]
[323747654,1714231849204,-500.0,0.00011232,2]
[323747655,1714231849213,-500.0,0.00011232,2]
[323747656,1714231849223,-500.0,0.00011232,2]
[323747657,1714231849234,-507.44,0.00011232,2]
[323747658,1714231849244,-500.0,0.00011232,2]
[323747659,1714231849254,-500.0,0.00011232,2]
[323747660,1714231849264,-500.0,0.00011232,2]
[323747661,1714231849274,-718.39,0.00011232,2]
[323747662,1714231849284,-595.09,0.00011232,2]
[323747663,1714231849293,-500.0,0.00011232,2]
[323747664,1714231849303,-500.0,0.00011232,2]
[323747665,1714231849313,-500.0,0.00011232,2]
[323747666,1714231849323,-500.0,0.00011232,2]
[323747667,1714231849332,-500.0,0.00011232,2]
[323747668,1714231849342,-500.0,0.00011232,2]
[323747669,1714231849351,-500.0,0.00011232,2]
[323747670,1714231849360,-500.0,0.00011232,2]
[323747671,1714231849370,-632.16,0.00011232,2]
[323747672,1714231849379,-500.0,0.00011232,2]
[323747673,1714231849389,-500.0,0.00011232,2]
[323747674,1714231849398,-500.0,0.00011232,2]
[323747675,1714231849408,-500.0,0.00011232,2]
[323747676,1714231849417,-500.0,0.00011232,2]
[323747677,1714231849427,-500.0,0.00011232,2]
[323747678,1714231849436,-500.0,0.00011232,2]
[323747679,1714231849445,-500.0,0.00011232,2]
[323747680,1714231849455,-644.63,0.00011232,2]
[323747681,1714231849464,-972.03,0.00011232,2]
[323747682,1714231849473,-1081.0,0.00011232,2]
[323747683,1714231849484,-170.15,0.00011232,2]
[323747684,1714231849493,-500.0,0.00011232,2]
[323747685,1714231849502,-500.0,0.00011232,2]
[323747686,1714231849511,-282.49,0.00011232,2]
[323747687,1714231849521,-500.0,0.00011232,2]
[323747688,1714231849530,-702.01,0.00011232,2]
[323747689,1714231849539,-500.0,0.00011232,2]
[323747690,1714231849549,-500.0,0.00011232,2]
[323747691,1714231849558,-500.0,0.00011232,2]
[323747692,1714231849567,-500.0,0.00011232,2]
[323747693,1714231849577,-500.0,0.00011232,2]
[323747694,1714231849587,-500.0,0.00011232,2]
[323747695,1714231849598,-660.7,0.00011232,2]
[323747696,1714231849607,-500.0,0.00011232,2]
[323747697,1714231849617,-661.51,0.00011232,2]
[323747698,1714231849627,-500.0,0.00011232,2]
[323747699,1714231849637,-500.0,0.00011232,2]
[323747700,1714231849647,-653.99,0.00011232,2]
[323747701,1714231849657,-500.0,0.00011232,2]
[323747702,1714231849667,-500.0,0.00011232,2]
[323747703,1714231849676,-500.0,0.00011232,2]
[323747704,1714231849687,-500.0,0.00011232,2]
[323747705,1714231849696,-1256.64,0.00011232,2]
[323747706,1714231849706,-500.0,0.00011232,2]
[323747707,1714231849715,-634.38,0.00011232,2]
[323747708,1714231849726,-1537.01,0.00011232,2]
[323747709,1714231849735,-500.0,0.00011232,2]
[323747710,1714231849745,-2190.27,0.00011232,2]
[323747711,1714231849755,-500.0,0.00011232,2]
[323747712,1714231849764,-549.52,0.00011232,2]
[323747713,1714231849775,-700.98,0.00011232,2]
[323747714,1714231849785,-705.74,0.00011232,2]
[323747715,1714231849794,-500.0,0.00011232,2]
[323747716,1714231849803,-500.0,0.00011232,2]
[323747717,1714231849812,-919.04,0.00011232,2]
[323747718,1714231849821,-2921.18760387,0.00011232,2]
[323747719,1714231849840,-1638.04999999,0.00011232,2]
[323747720,1714231849851,-152.83239614,0.00011232,2]
[323747721,1714231849860,-801.93,0.00011232,2]
[323747722,1714231849870,-322.05370386,0.00011232,2]
[323747723,1714231849887,-177.94629614,0.00011232,2]
[323747724,1714231849898,-500.0,0.00011232,2]
[323747725,1714231849908,-500.0,0.00011232,2]
[323747726,1714231849918,-1474.31,0.00011232,2]
[323747727,1714231849927,-500.0,0.00011232,2]
[323747728,1714231849937,-1692.17,0.00011232,2]
[323747729,1714231849948,-500.0,0.00011232,2]
[323747730,1714231849957,-500.0,0.00011232,2]
[323747731,1714231849967,-2054.62,0.00011232,2]